Cogmind - Beta 11 @@@ ROGUE MODE // 2022.04.13 @ 15:57:47 Player: Leonulf Result: Destroyed by H-55 Commando with Assault Rifle Performance ------------- Evolutions (2) 1000 Regions Visited (3) 600 Robots Destroyed (35) 175 Value Destroyed (1049) 1049 Prototype IDs (0) 0 Alien Tech Used (0) 0 Bonus (0) 0 TOTAL SCORE: 2824 Bonus ------- None Cogmind --------- Core Integrity 0/550 Matter 300/300 Energy 76/100 System Corruption 0% Temperature Cool (9) Movement Core (250) Ox4 Location -8/Materials Parts ------- > --- POWER (1) -------- (None) > --- PROPULSION (3) --- (None) > --- UTILITY (4) ------ Medium Storage Unit Visual Processing Unit > --- WEAPON (3) ------- Pulse Rifle > --- INVENTORY (10) --- Deuterium Engine Light Nuclear Core Light Nuclear Core Light Treads Improved Heat Sink Medium Storage Unit Hardened Medium Armor Plating Peak State ------------ > --- POWER ------------ Light Nuclear Core > --- PROPULSION ------- Aluminum Leg Aluminum Leg Aluminum Leg > --- UTILITY ---------- Medium Storage Unit High-capacity Matter Pod Visual Processing Unit Sensor Array > --- WEAPON ----------- Shock Rifle Small Laser Particle Gun > --- INVENTORY -------- Deuterium Engine Light Nuclear Core Light Nuclear Core Light Treads Improved Heat Sink Medium Storage Unit Recoil Stabilizer Hardened Medium Armor Plating Medium Laser [Rating: 19] Favorites ----------- Power Light Ion Engine Engine Light Ion Engine Power Core Light Nuclear Core Propulsion Aluminum Leg Leg Aluminum Leg Utility Medium Storage Unit Device Heat Sink Storage Medium Storage Unit Processor Visual Processing Unit Protection Core Shielding Weapon Shock Rifle Energy Gun Shock Rifle Ballistic Gun Light Assault Rifle Ballistic Cannon Light Cannon Build | -11 -10 -9 -8 ------- Run | Scr Mat Mat Mat Slots Evolved 4 | . . 2 2 Power . | . . . . Propulsion 1 | . . . 1 Utility 2 | . . 2 . Weapon 1 | . . . 1 Parts Attached 46 | 7 19 9 11 Power 4 | 1 1 1 1 Engine 2 | 1 1 . . Core 2 | . . 1 1 Reactor . | . . . . Propulsion 12 | 3 5 1 3 Treads . | . . . . Leg 12 | 3 5 1 3 Wheel . | . . . . Hover . | . . . . Flight . | . . . . Utility 12 | 1 6 3 2 Device 4 | 1 . 1 2 Storage 4 | . 4 . . Processor 1 | . . 1 . Hackware . | . . . . Protection 3 | . 2 1 . Artifact . | . . . . Weapon 18 | 2 7 4 5 Energy Gun 10 | 1 . 4 5 Energy Cannon . | . . . . Ballistic Gun 7 | 1 6 . . Ballistic Cannon 1 | . 1 . . Launcher . | . . . . Special Weapon . | . . . . Impact Weapon . | . . . . Slashing Weapon . | . . . . Piercing Weapon . | . . . . Special Melee Weapon . | . . . . Unidentified Prototypes . | . . . . Parts Lost 15 | . 1 2 12 Power 2 | . . 1 1 Propulsion 4 | . . 1 3 Utility 3 | . . . 3 Weapon 6 | . 1 . 5 Highest Loss Streak 8 | . 1 1 8 To Critical Strikes 1 | . . . 1 Average Slot Usage (%) 91 | . 95 96 69 Engine 8 | . 14 . . Core 3 | . . 9 3 Leg 23 | . 28 20 13 Device 2 | . 4 . 2 Storage 18 | . 17 22 18 Processor 4 | . . 11 9 Protection 4 | . 2 11 4 Energy Gun 10 | . 3 19 17 Ballistic Gun 11 | . 19 . . Ballistic Cannon 2 | . 4 . . Naked Turns . | . . . . Heaviest Build 28 | 7 27 26 28 Greatest Support 30 | 20 20 20 30 Greatest Overweight (x) 6 | . 1 2 6 Average Overweight (x) . | . . 1 . Largest Inventory Capacity 15 | 5 15 10 10 Average Capacity 8 | 5 7 10 10 Most Carried 10 | 5 10 10 10 Average Carried 7 | 2 7 9 9 Final Capacity 10 | 5 10 10 10 Final Carried 10 | 4 10 10 7 Class Distribution -------------------- 91% | Mutant 5% | Scavenger-Skirmisher 3% | Scavenger-Mutant Dominant Class ---------------- Mutant | -10/Materials Mutant | -9/Materials Mutant | -8/Materials Resources | -11 -10 -9 -8 ----------- Run | Scr Mat Mat Mat Matter Collected 967 | 272 384 231 80 Remotely . | . . . . Salvage Created 1248 | 40 388 467 353 Parts 78 | 3 26 32 17 Haulers Intercepted . | . . . . Recyclers Shooed . | . . . . Parts Field Recycled . | . . . . Retrieved Matter . | . . . . Parts Self-Destructed . | . . . . Prevented . | . . . . Kills | -11 -10 -9 -8 ------- Run | Scr Mat Mat Mat Combat Hostiles Destroyed 32 | 1 12 12 7 Guns 23 | 1 8 9 5 Cannons 1 | . 1 . . AOE 7 | . 3 3 1 Classes Destroyed 8 | 1 4 1 2 Worker 1 | . 1 . . Recycler 1 | . 1 . . Watcher 1 | . 1 . . Swarmer 9 | . 6 3 . Grunt 18 | 1 6 7 4 Duelist 2 | . . 2 . Sentry 2 | . . . 2 Specialist 1 | . . . 1 Best Kill Streak 6 | 1 5 6 3 Combat Bots Only 6 | 1 4 6 3 Max Kills in Single Turn 3 | 1 3 2 1 Gunslinging . | . . . . Exploded 3 | . 3 2 1 Melee . | . . . . Uniques/NPCs Destroyed . | . . . . Combat | -11 -10 -9 -8 -------- Run | Scr Mat Mat Mat Damage Taken 2445 | 21 550 374 1500 Core 752 | . 124 68 560 Absorbed by Shields . | . . . . Redirected to Shielding 60 | . . 15 45 Core Remaining (%) 77 | 100 50 83 . Volleys Fired 88 | 2 36 20 30 Largest 3 | 2 2 2 3 Hottest 165 | 60 60 100 165 Shots Fired 175 | 4 72 40 59 Gun 166 | 4 63 40 59 Cannon 9 | . 9 . . Launcher . | . . . . Special . | . . . . Kinetic 70 | 2 68 . . Thermal 39 | . . . 39 Explosive . | . . . . Electromagnetic 66 | 2 4 40 20 Robot Hit Streak 15 | 3 11 12 15 Robot Miss Streak 4 | . 4 2 3 Penetration Max . | . . . . Secondary Targets . | . . . . Shots Hit Robots 122 | 3 47 27 45 Core Hits 50 | 1 21 16 12 Critical Kills . | . . . . Critical Parts Destroyed . | . . . . Critical Strikes 4 | . 2 1 1 Blast 1 | . 1 . . Corrupt 3 | . 1 1 1 Melee Attacks . | . . . . Impact . | . . . . Slashing . | . . . . Piercing . | . . . . Sneak Attacks . | . . . . Combat Hostiles . | . . . . Follow-up Attacks . | . . . . Damage Inflicted 1979 | 34 719 588 638 Guns 1645 | 34 507 466 638 Cannons 109 | . 109 . . Explosions 224 | . 102 122 . Melee . | . . . . Ramming 1 | . 1 . . Kinetic 599 | 7 592 . . Thermal 589 | . 102 122 365 Explosive . | . . . . Electromagnetic 790 | 27 24 466 273 Impact . | . . . . Slashing . | . . . . Piercing . | . . . . Highest Corruption . | . . . . Average Corruption . | . . . . Corruption Purged . | . . . . Corruption Blocked . | . . . . Overload Shots . | . . . . Overflow Damage 5 | . . 5 . Projectiles . | . . . . Explosions 5 | . . 5 . Melee . | . . . . Knockbacks 1 | . 1 . . Impact . | . . . . Kinetic 1 | . 1 . . Secondary . | . . . . Self-Inflicted Damage 93 | . 29 64 . Shots 3 | . 1 2 . Rammed . | . . . . Targets Rammed 2 | . 2 . . Kicked 2 | . 2 . . Crushed . | . . . . Highest Temperature 462 | 32 28 164 462 Average Temperature 89 | 21 9 61 150 Received Heat Transfer 630 | 12 219 75 324 Effects 3 | . . . 3 Energy Bleed 2 | . . . 2 Short Circuit 1 | . . . 1 Siege Activations . | . . . . Robots Corrupted 1 | . . . 1 Combat Hostiles 1 | . . . 1 Parts Fried 4 | . . . 4 Impact Corruptions . | . . . . Robots Melted . | . . . . Combat Hostiles . | . . . . Parts Melted 1 | . . 1 . Heat Transferred 1118 | . 100 150 868 Parts Sabotaged . | . . . . Parts Stolen . | . . . . Parts Stripped . | . . . . Power Chain Reactions 3 | . 1 2 . Missiles Intercepted . | . . . . Alert | -11 -10 -9 -8 ------- Run | Scr Mat Mat Mat Peak Influence 384 | 20 147 384 232 Initial 77 | . 13 33 77 Average 104 | 4 82 146 147 Maximum Alert Level 1 | . . 1 1 Low Security (%) 91 | 100 100 72 87 Level 1 8 | . . 27 12 Level 2 . | . . . . Level 3 . | . . . . Level 4 . | . . . . Level 5 . | . . . . High Security . | . . . . Max Security . | . . . . Squads Dispatched 7 | . 1 1 5 Investigation 2 | . . 1 1 Extermination . | . . . . Reinforcement 5 | . 1 . 4 Assault . | . . . . Garrison . | . . . . Intercept . | . . . . Searches Triggered . | . . . . Construction Impeded . | . . . . Haulers Reinforced . | . . . . Active Scanning Responses . | . . . . Cargo Convoy Interrupts . | . . . . Stealth | -11 -10 -9 -8 --------- Run | Scr Mat Mat Mat Distress Signals 1 | . . . 1 Communications Jammed . | . . . . Distress Signals . | . . . . Times Spotted 47 | 1 17 15 14 Peak Tracking Total 5 | 1 5 4 5 Tactical Retreats 2 | . 1 . 1 Traps | -11 -10 -9 -8 ------- Run | Scr Mat Mat Mat Traps Triggered 4 | . 3 . 1 Indirectly . | . . . . Trap Hack Attempts . | . . . . Triggered . | . . . . Disarmed . | . . . . Reprogrammed . | . . . . Reused . | . . . . Traps Extracted . | . . . . Installed . | . . . . Triggered 1 | . . 1 . Machines | -11 -10 -9 -8 ---------- Run | Scr Mat Mat Mat Machines Disabled . | . . . . Max in Single Turn . | . . . . Machines Sabotaged . | . . . . Garrisons Compromised . | . . . . Overloaded Fab Kills . | . . . . Hacking | -11 -10 -9 -8 --------- Run | Scr Mat Mat Mat Machines Accessed 5 | . 2 3 . Terminals 5 | . 2 3 . Fabricators . | . . . . Repair Stations . | . . . . Recycling Units . | . . . . Scanalyzers . | . . . . Garrison Access . | . . . . Total Hacks 6 | . 2 4 . Successful 5 | . 1 4 . Failed 1 | . 1 . . Catastrophic . | . . . . Database Lockouts . | . . . . Manual . | . . . . Terminals 6 | . 2 4 . Fabricators . | . . . . Repair Stations . | . . . . Recycling Units . | . . . . Scanalyzers . | . . . . Garrison Access . | . . . . Terminal Hacks 5 | . 1 4 . Record 1 | . . 1 . Robot Analysis 1 | . . 1 . Locate Traps 1 | . . 1 . Maintenance Status 1 | . . 1 . Hauler Manifests 1 | . 1 . . Fabricator Hacks . | . . . . Repair Station Hacks . | . . . . Recycling Unit Hacks . | . . . . Scanalyzer . | . . . . Garrison Access Hacks . | . . . . Unauthorized Hacks . | . . . . Terminals . | . . . . Fabricators . | . . . . Repair Stations . | . . . . Recycling Units . | . . . . Scanalyzers . | . . . . Garrison Access . | . . . . Data Cores Recovered . | . . . . Used . | . . . . Hacking Detections 1 | . . 1 . Full Trace Events . | . . . . Feedback Events . | . . . . Feedback Blocked . | . . . . Robot Schematics Acquired . | . . . . Robots Built . | . . . . Authchips . | . . . . Time . | . . . . Total Robot Build Rating . | . . . . Part Schematics Acquired . | . . . . Parts Built . | . . . . Authchips . | . . . . Time . | . . . . Total Part Build Rating . | . . . . Parts Repaired . | . . . . Time . | . . . . Parts Recycled . | . . . . Recycled Matter . | . . . . Retrieved Matter . | . . . . Retrieved Components . | . . . . Parts Scanalyzed . | . . . . Part Schematics Acquired . | . . . . Parts Damaged . | . . . . Bothacking | -11 -10 -9 -8 ------------ Run | Scr Mat Mat Mat Used RIF Installer . | . . . . Robots Hacked . | . . . . Non-combat . | . . . . Combat . | . . . . Robot Hacks Applied . | . . . . Relay Couplers Released . | . . . . Fabnet Peak Effective % . | . . . . Robots Rewired . | . . . . Allies Hacked . | . . . . Hacks Repelled . | . . . . Allies | -11 -10 -9 -8 -------- Run | Scr Mat Mat Mat Total Allies . | . . . . Largest Group . | . . . . Highest-Rated Group . | . . . . Highest-Rated Ally . | . . . . Total Orders . | . . . . Ally Attacks . | . . . . Total Damage . | . . . . Kills . | . . . . Allies Corrupted . | . . . . Allies Melted . | . . . . Intel | -11 -10 -9 -8 ------- Run | Scr Mat Mat Mat Robot Analysis Total 1 | . . 1 . Derelict Logs Recovered . | . . . . Drone Launches . | . . . . Drone Recoveries . | . . . . Exploration | -11 -10 -9 -8 ------------- Run | Scr Mat Mat Mat Turns Passed 1726 | 96 920 411 299 Spaces Moved 833 | 76 481 168 108 Core 30 | 25 . . 5 Treads . | . . . . Legs 803 | 51 481 168 103 Wheels . | . . . . Hover . | . . . . Flight . | . . . . Fastest Speed 50 | 50 120 120 120 Average Speed 152 | 96 143 194 166 Slowest Speed 350 | 120 190 260 350 Overloaded Moves . | . . . . Propulsion Burnouts . | . . . . Robots Hopped . | . . . . Cave-ins Triggered . | . . . . Exploration Rate (%) 20 | 6 49 17 8 Regions Visited 3 Branch Regions . Pre-discovered Areas . | . . . . Known Exits Taken . | . . . . Unknown Exits Taken 3 | 1 1 1 . Scrap Searched . | . . . . Spaces Dug . | . . . . Terrain Destroyed 10 | . 3 7 . Melee . | . . . . Projectile . | . . . . AOE 10 | . 3 7 . Terrain Rammed . | . . . . Walls Destroyed . | . . . . Machines Disabled . | . . . . Actions | -11 -10 -9 -8 --------- Run | Scr Mat Mat Mat Total 1122 | 95 640 213 174 Wait 90 | . 70 2 18 Move 830 | 75 480 167 108 Hop . | . . . . Pick Up 41 | 10 19 8 4 Fast Attach 13 | . 8 1 4 Attach 15 | 6 1 3 5 Detach . | . . . . Swap 18 | 1 10 5 2 Drop 25 | 1 14 7 3 Fire 88 | 2 36 20 30 Melee . | . . . . Ram . | . . . . Kick 2 | . 2 . . Crush . | . . . . Escape Stasis . | . . . . Rewire . | . . . . Trap . | . . . . Miscellaneous . | . . . . Route ------- -11/Scrapyard -10/Materials -9/Materials -8/Materials History --------- Turn | Location | Event 2 | -11/Scrapyard | Met Revision 17 65 | -11/Scrapyard | Discovered new exit (range 8) 97 | -11/Scrapyard | Entered Materials 347 | -10/Materials | Build established: Mutant 917 | -10/Materials | Discovered new exit (range 9) 1017 | -10/Materials | Entered another Materials area 1017 | -9/Materials | Evolved 2 slots: Utility x2 1369 | -9/Materials | Discovered new exit (range 9) 1428 | -9/Materials | Entered another Materials area 1428 | -8/Materials | Evolved 2 slots: Propulsion x1, Weapon x1 1713 | -8/Materials | Core integrity fell below 50% 1720 | -8/Materials | Core integrity fell below 20% 1727 | -8/Materials | Destroyed by H-55 Commando with Assault Rifle Last Messages --------------- 01713_ Knocked back. 01715_ Penetrated by Slug. 01716_ U-05 Engineer lays Concrete. 01716_ Med. Laser destroyed. 01717_ U-05 Engineer lays Concrete. 01718_ Penetrated by Slug. 01718_ U-05 Engineer lays Concrete. 01719_ Penetrated by Slug. 01720_ U-05 Engineer lays Concrete. 01721_ Critical hit (Burn: +37). 01721_ U-05 Engineer lays Concrete. 01723_ Acquired Pulse Rifle. 01723_ Slug penetrates Wall. 01723_ U-05 Engineer lays Concrete. 01724_ Penetrated by Slug. 01724_ Critical hit (Destroy). 01724_ Hcp. Matter Pod destroyed. 01724_ Knocked back. 01724_ U-05 Engineer lays Concrete. 01727_ Penetrated by Slug. Map ----- +----------------------------------------------------+ | ?????????????????# ###########??? | | ?????????????????# # #??? | | ?????????????????# # #??? | | ?????????????????# # #??? | | ?????????????????# # """ """ #??? | | ?????????????????# + """ """ #??? | | ?????????????????# # """ """ #??? | | ?????????????????# # #??? | | ?????????????????# # #??? | | ?????????????????# ###########??? | | ?????????????????# "# #####?????? | | ?????????????????# " ";; #?????? | | ?????????????????# #### ;;###???? | | ?????????????????# # #???? | | ?????????????????# * # #???? | | ?????????????????# # u ! #???? | | ?????????????????# #[ #???? | | ?????????????????# = + =u #???? | | ?????????????????# # #???? | | ?????????????????# # #???? | | ?????????????????# # #???? | | ?????????????????# # #???? | | ?????????????????# #;;;;;;####??? | | ?????????????????# # #??? | | ?????????????????# # #??? | | ?????????????????# # @ #??? | | ?????????????????# =+%! ##?? | | ?????????????????# #x% % ; #? | | ?????????????????# ;=* % ###? | | ?????????????????# H;= #??? | | ?????????????????# gh# % % #??? | | ?????????????????# ###########??? | | ?????????????????# "????????????? | | ?????????????????# #????????????? | | ?????????????????# #????????????? | | ????????????????? ????????????? | | ????????????????? ????????????? | | ????????????????? ????????????? | | ???????????????? ????????????? | | ????????????????# ????????????? | | ????????????????###+##????????????? | | ??????????????????????????????????? | | ??????????????????????????????????? | | ??????????????????????????????????? | | ??????????????????????????????????? | | ??????????????????????????????????? | | ??????????????????????????????????? | | ??????????????????????????????????? | | ??????????????????????????????????? | | ??????????????????????????????????? | +----------------------------------------------------+ Best States ------------- Heat Dissipation 35 Energy Generation 14 Energy Capacity 250 Matter Stores 500 Matter Capacity 500 Sight Range 18 Robot Scan Range 14 Terrain Scan Density 10 Armor Coverage 150 Core Shielding 20 Evasion (%) 55 Recoil Reduction 4 Item Schematics ----------------- None Robot Schematics ------------------ None Fabricated ------------ Nothing Alien Tech Used ----------------- None Achievements -------------- Shopping List Challenges ------------ None Game ------ Seed OmegaOpticalShearcannon Manual? 0 Play Time 00:29:07 Cumulative 2.4 hours Start 2022.04.13 @ 15:28:54 End 2022.04.13 @ 15:57:47 Sessions 1 Manual Loads 0 Difficulty Rogue Special Mode None Game No. 2 Rogue 2 Adventurer 0 Explorer 0 Win Type - Total 0 Types 0/0/0/0/0/0/0/0/0 Lore% 1 Gallery% 7 Achievement% 7 Wizard Run 0 Options --------- ASCII 0 Keyboard 0 Movement Mouse Keybinds 0 Fullscreen 1 Font 18/SmallcapsGlow Map View 76x50 Tactical HUD 1 Map Filters NONE Filters NONE Steam 1 RUN: 54f08540-d496-48f5-b877-82b82596581b